bitfinex/quotes_ETHUSD_20250925
["timestamp","ask_amount","ask_price","bid_price","bid_amount"]
[1758777102016,0.2447,4027.8,4026.7,0.6926]
[1758777102358,0.2447,4027.8,4027.2,2.48306763]
[1758777102656,0.02,4027.9,4026.4,6.64556603]
[1758777102657,0.02,4027.9,4027.0,0.2299]
[1758777102862,4.906,4027.7,4027.0,3.17582941]
[1758777103016,4.905,4027.6,4027.0,0.6926]
[1758777103355,3.0,4027.5,4027.2,2.48311061]
[1758777103716,0.2447,4027.4,4026.4,4.162]
[1758777103915,3.2447,4027.4,4026.9,2.483247]
[1758777104435,3.2447,4027.4,4026.4,4.162]
[1758777104436,3.19575825,4027.8,4027.0,2.48322962]
[1758777104617,4.903,4027.4,4026.6,0.6926]
[1758777104844,5.48312308,4027.2,4026.2,2.2999]
[1758777105044,3.2447,4027.1,4025.8,0.2299]
[1758777105243,3.2447,4027.1,4026.4,2.48360336]
[1758777105659,2.48330745,4026.9,4026.0,0.6926]
[1758777105963,3.0,4026.7,4026.0,3.17645194]
[1758777106260,3.0,4026.7,4026.2,2.48371655]
[1758777106462,3.0,4026.5,4026.0,0.6926]
[1758777106756,3.0,4026.5,4026.2,2.48367625]
[1758777106964,3.0,4026.5,4026.0,0.6926]
[1758777107261,3.0,4026.5,4026.0,3.17644538]
[1758777107745,4.898,4026.6,4026.3,2.48366714]
[1758777107929,2.48325428,4027.0,4026.3,2.48366714]
[1758777107930,5.48325428,4027.0,4026.3,2.48366714]
[1758777108122,3.0,4026.5,4026.2,2.48371902]
[1758777108550,2.48324712,4027.0,4026.2,2.48371902]
[1758777108767,3.0,4026.8,4026.4,2.48355918]
[1758777108955,2.48318738,4027.1,4026.4,2.48355918]
[1758777109158,3.0,4026.9,4026.4,0.2299]
[1758777109765,0.38949999,4026.8,4026.3,2.48365312]
[1758777109967,0.63419999,4026.8,4026.0,0.6926]
[1758777110277,0.63419999,4026.8,4026.0,3.17643599]
[1758777110476,0.63419999,4026.8,4026.0,0.6926]
[1758777110856,0.63419999,4026.8,4026.0,3.17645386]
[1758777111049,3.0,4026.6,4026.3,2.48366979]
[1758777111593,3.0,4026.6,4026.1,2.48378144]
[1758777112040,3.0,4026.6,4026.1,0.6926]
[1758777112242,3.0,4026.6,4026.2,2.48373155]
[1758777112492,3.2447,4026.6,4025.7,4.3279]
[1758777112795,0.38949999,4026.8,4025.6,4.098]
[1758777113000,3.0,4026.4,4025.7,2.48399425]
[1758777113193,0.2447,4026.3,4025.2,0.2299]
[1758777113374,0.713,4026.3,4025.3,2.48428578]
[1758777113578,2.48383908,4026.1,4025.3,2.48428578]
[1758777113769,3.0,4025.9,4025.3,2.48428578]
[1758777114174,3.0,4025.9,4025.3,2.48427295]
[1758777114596,3.0,4025.9,4025.1,2.50638326]
[1758777114801,3.0,4025.9,4025.2,2.4842896]
[1758777115101,3.0,4025.7,4025.3,0.2299]
[1758777115253,3.0,4025.7,4025.6,2.48404045]
[1758777115463,0.2447,4026.6,4025.6,0.6926]
[1758777115691,4.884,4026.5,4026.2,2.4836862]
[1758777115918,3.0,4026.4,4026.2,2.4836862]
[1758777116113,3.0,4026.4,4026.0,0.2299]
[1758777116114,4.883,4026.4,4026.0,2.48380668]
[1758777116612,4.883,4026.4,4025.9,2.48389951]
[1758777116794,4.883,4026.4,4026.0,2.48383838]
[1758777118106,3.2447,4026.3,4025.6,4.098]
[1758777118417,2.48395877,4025.9,4025.6,4.098]
[1758777118583,3.0,4025.7,4025.5,0.002]
[1758777118783,7.88,4025.6,4025.5,0.002]
[1758777118998,7.879,4025.6,4025.5,0.002]
[1758777120049,3.38961678,4025.6,4025.5,0.002]
[1758777120343,7.877,4025.6,4025.5,0.002]
[1758777120698,3.0,4025.6,4025.5,0.002]
[1758777120895,7.877,4025.6,4025.5,0.002]
[1758777121443,7.875,4025.6,4025.5,0.002]
[1758777121800,3.2355,4025.6,4025.5,0.002]
[1758777122023,13.11940174,4025.6,4025.5,0.002]
[1758777122232,13.11940174,4025.6,4025.1,0.022]
[1758777122233,2.4843486,4025.2,4025.1,0.022]
[1758777122448,10.3583486,4025.2,4025.1,0.022]
[1758777122615,11.0486486,4025.2,4025.1,0.022]
[1758777123313,11.8406486,4025.2,4025.1,0.022]
[1758777123798,11.8406486,4025.2,4024.6,0.002]
[1758777123799,2.48465724,4024.7,4024.6,0.002]
[1758777123995,10.35665724,4024.7,4024.6,0.002]
[1758777124199,11.04695724,4024.7,4024.6,0.002]
[1758777124439,11.43671321,4024.7,4024.6,0.002]
[1758777125396,0.38975597,4024.7,4024.6,0.4345]
[1758777125601,0.21675375,4024.7,4024.6,0.6624]
[1758777125857,0.833,4024.7,4024.6,0.6624]
[1758777126039,0.833,4024.7,4024.6,0.002]
[1758777126528,4.869,4025.1,4024.7,2.48464083]
[1758777126700,4.868,4025.2,4024.8,3.14495101]
[1758777126896,4.868,4025.2,4025.0,2.48445548]
[1758777127100,4.868,4025.2,4025.1,3.14481032]
[1758777127300,0.38970194,4025.5,4025.2,2.48431554]
[1758777127502,3.0,4025.3,4025.2,3.14474717]
[1758777127698,4.866,4025.4,4025.2,0.6604]
[1758777128267,7.866,4025.4,4025.3,3.1446374]
[1758777128419,7.866,4025.4,4025.3,3.14468688]
[1758777128620,3.0,4025.4,4025.3,3.14468688]
[1758777128820,7.865,4025.4,4025.3,3.14468688]
[1758777129053,3.20921228,4025.4,4025.3,3.14468688]
[1758777129918,3.20921228,4025.4,4025.3,0.6604]
[1758777130124,3.20921228,4025.4,4025.3,0.2279]
[1758777130310,3.20921228,4025.4,4025.3,2.71218688]
[1758777130520,0.2355,4026.3,4025.7,2.4840341]
[1758777130714,4.862,4026.2,4025.3,0.6604]
[1758777130938,5.48380649,4026.1,4025.4,2.48421867]
[1758777131144,3.0,4025.9,4025.4,2.48421867]
[1758777131329,0.2433,4025.8,4024.7,4.098]
[1758777131628,3.0,4026.0,4024.8,0.71034595]
[1758777131837,3.0,4025.8,4025.3,2.48422569]
[1758777132159,0.38962994,4026.1,4025.3,0.4602]
[1758777132360,3.0,4025.9,4025.4,2.70947901]
[1758777132860,3.0,4025.9,4025.5,2.48415924]
[1758777133065,2.72703916,4026.2,4025.5,2.48415924]
[1758777133066,3.0,4025.7,4025.6,2.48410174]
[1758777133554,3.2433,4026.2,4025.6,2.48410174]
[1758777133763,3.0,4026.0,4025.5,2.94435068]
[1758777134065,3.0,4026.0,4025.3,0.2253]
[1758777134360,3.0,4026.0,4025.5,2.48416142]
[1758777134551,0.38960339,4025.9,4025.5,2.48416142]
[1758777135449,3.0,4025.7,4025.4,2.48622517]
[1758777135650,3.0,4025.7,4025.4,0.002]
[1758777136165,3.0,4025.8,4025.4,0.002]
[1758777136466,5.0963,4025.6,4025.4,0.002]
[1758777137221,0.2433,4025.5,4025.4,0.002]
[1758777137450,4.853,4025.6,4025.4,0.002]
[1758777137647,0.63290339,4025.9,4025.4,0.002]
[1758777137876,3.0,4025.5,4025.4,0.002]
[1758777138563,3.2433,4025.5,4025.4,0.002]
[1758777140233,8.0903,4025.5,4025.4,0.002]
[1758777141423,8.0883,4025.5,4025.4,0.002]
[1758777144170,3.0,4025.4,4024.9,0.002]
[1758777144466,2.48430022,4025.3,4024.9,0.002]
[1758777144772,5.4843652,4025.2,4024.9,0.002]
[1758777144926,3.0,4025.2,4025.1,2.48441032]
[1758777145125,0.001,4026.2,4025.1,2.48441032]
[1758777145126,3.0,4025.5,4025.3,2.48428525]
[1758777145328,3.0,4025.5,4025.3,3.16978525]
[1758777145526,3.0,4025.5,4025.4,2.48422517]
[1758777145855,4.838,4025.8,4025.7,2.48398061]
[1758777146060,0.001,4026.2,4025.8,2.48397231]
[1758777146384,4.837,4026.1,4025.9,2.48390875]
[1758777146688,0.001,4026.2,4025.9,2.48390875]
[1758777146983,0.001,4026.2,4025.9,2.4839163]
[1758777147169,3.0,4026.1,4026.0,0.6855]
[1758777147338,0.001,4026.2,4026.1,2.48379324]
[1758777147743,0.001,4026.2,4026.1,3.16929324]
[1758777148140,0.001,4026.2,4026.1,3.19413117]
[1758777148641,0.001,4026.2,4025.4,4.835]
[1758777148642,0.001,4026.2,4025.5,0.2253]
[1758777148845,0.001,4026.2,4026.1,2.48379324]
[1758777149044,0.001,4026.2,4026.1,3.16929324]
[1758777149686,0.001,4026.2,4026.1,3.19413117]
[1758777151285,0.001,4026.2,4025.8,2.48397833]
[1758777151487,0.001,4026.2,4025.7,0.4602]
[1758777151990,0.001,4026.2,4025.8,0.71033978]
[1758777152166,0.001,4026.2,4025.9,2.48390214]
[1758777152489,0.001,4026.2,4025.4,5.0543]
[1758777152695,0.2433,4026.1,4025.7,2.48403493]
[1758777152853,0.001,4026.2,4025.8,2.48396951]
[1758777153054,0.001,4026.2,4025.5,2.48416279]
[1758777153256,3.0,4026.0,4025.1,0.2253]
[1758777153471,3.0,4026.0,4024.9,5.2892]
[1758777153472,3.0,4025.9,4024.9,0.002]
[1758777153685,2.48427352,4025.4,4024.9,0.002]
[1758777153862,2.48435872,4025.2,4024.9,0.002]
[1758777154061,5.48435872,4025.2,4024.9,0.002]
[1758777154258,3.2433,4025.1,4024.9,0.002]
[1758777154487,0.2433,4025.1,4024.9,0.002]
[1758777155005,0.2433,4025.0,4024.9,0.002]
[1758777155173,6.17587204,4025.0,4024.9,0.002]
[1758777156465,2.48465724,4024.7,4024.6,0.002]
[1758777156691,10.30565724,4024.7,4024.6,0.002]
[1758777156895,5.48465724,4024.7,4024.6,0.002]
[1758777157097,10.99705724,4024.7,4024.6,0.002]
[1758777157409,3.0,4024.7,4024.6,0.002]
[1758777158094,3.2433,4024.7,4024.6,0.002]
[1758777158296,3.0,4024.7,4024.6,0.002]
[1758777159486,5.72795724,4024.7,4024.6,0.002]
[1758777159879,6.17605724,4024.7,4024.6,0.002]
[1758777160408,10.99205724,4024.7,4024.6,0.002]
[1758777160612,10.54395724,4024.7,4024.6,0.002]
[1758777160775,10.97205724,4024.7,4024.6,0.002]
[1758777161608,2.48488411,4024.4,4024.1,0.02]
[1758777161787,2.48496595,4024.2,4024.1,0.02]
[1758777161991,5.48496595,4024.2,4024.1,0.02]
[1758777162316,6.111563,4024.2,4024.1,0.02]
[1758777163012,2.48472431,4024.6,4024.1,0.6763]
[1758777163214,0.2368,4025.4,4024.2,0.6563]
[1758777163392,4.60230593,4025.3,4024.5,2.48472697]
[1758777163707,3.0,4025.2,4024.6,3.14099177]
[1758777164115,4.60229439,4025.3,4024.6,0.6563]
[1758777164316,4.60229439,4025.3,4024.6,0.2254]
[1758777164493,2.48446758,4025.1,4024.3,2.71027305]
[1758777164814,2.48447213,4025.0,4024.3,0.2254]
[1758777165011,2.48447213,4025.0,4024.3,2.71029324]
[1758777165203,4.60229439,4025.3,4024.3,2.71029324]
[1758777165400,0.2368,4025.2,4024.1,0.6763]
[1758777165605,0.38973972,4025.4,4024.3,2.4849042]
[1758777165792,0.38973972,4025.4,4024.4,0.6563]
[1758777165979,0.38973972,4025.4,4024.8,2.4845384]
[1758777166184,3.0,4025.3,4024.7,2.71004488]
[1758777166580,3.0,4025.3,4024.8,2.48459382]
[1758777167413,3.0,4025.3,4024.7,0.2254]
[1758777168342,0.38973972,4025.4,4024.9,2.48447228]
[1758777168621,3.0,4025.1,4024.9,2.48452729]
[1758777168919,4.806,4026.0,4025.4,2.48420832]
[1758777169092,3.0,4025.9,4025.5,2.48412899]
[1758777169298,3.0,4025.9,4025.5,2.70952899]
[1758777169615,3.38961508,4025.9,4025.5,2.70952899]
[1758777170124,0.38961508,4025.9,4025.6,0.6563]
[1758777170322,0.001,4026.0,4025.1,0.6563]
[1758777170821,0.001,4026.0,4025.7,2.4840286]
[1758777170988,0.001,4026.0,4025.6,2.48409599]
[1758777171188,0.001,4026.0,4025.6,2.48405157]
[1758777171403,0.001,4026.0,4025.7,0.6563]
[1758777171599,0.001,4026.0,4025.1,0.6563]
[1758777171809,0.001,4026.0,4025.4,2.48420409]
[1758777172144,0.001,4026.2,4025.9,2.48391663]
[1758777172347,0.001,4026.2,4026.1,2.48379324]
[1758777172805,0.001,4026.2,4026.1,3.14009324]
[1758777173506,0.001,4026.7,4026.6,2.48348482]
[1758777173507,1e-08,4026.7,4026.6,2.48348482]
[1758777173708,1e-08,4026.7,4026.6,7.28148482]
[1758777173945,1e-08,4026.7,4026.6,3.13978482]
[1758777175866,1e-08,4026.7,4026.6,3.16461966]
[1758777177156,1e-08,4026.7,4026.6,3.13978482]
[1758777178044,1e-08,4026.7,4026.6,7.95661966]
[1758777178242,1e-08,4026.7,4026.6,7.93178482]
[1758777180361,1e-08,4026.7,4026.6,3.13978482]
[1758777180547,1e-08,4026.7,4026.6,7.92778482]
[1758777181659,1e-08,4026.7,4026.6,7.27148482]
[1758777181823,1e-08,4026.7,4026.2,0.2282]
[1758777182021,1e-08,4026.7,4026.6,2.48348482]
[1758777182775,1e-08,4026.7,4026.2,4.785]
[1758777182955,1e-08,4026.7,4026.6,2.48348482]
[1758777183643,0.24360001,4026.7,4026.2,4.785]
[1758777183854,1e-08,4026.7,4025.9,2.07]
[1758777184255,1e-08,4026.7,4025.9,4.55385605]
[1758777184256,0.2436,4026.6,4025.9,4.55385605]
[1758777184472,0.2436,4026.6,4026.0,2.48385246]
[1758777184689,0.2436,4026.6,4025.8,4.783]
[1758777184858,0.2436,4026.5,4025.8,4.783]
[1758777185048,0.4374,4026.6,4025.8,4.783]
[1758777185049,0.2436,4026.4,4025.8,4.783]
[1758777185249,2.48373469,4026.2,4025.8,4.783]
[1758777185480,2.48373469,4026.2,4025.1,3.17360675]
[1758777185481,0.2436,4026.1,4025.5,2.4841168]
[1758777185639,0.2436,4026.1,4025.4,2.48420915]
[1758777185840,0.2436,4026.1,4025.6,2.48406815]
[1758777186540,3.16487186,4026.0,4025.3,4.781]
[1758777186739,5.48396336,4025.9,4025.3,4.781]
[1758777186940,0.2436,4025.8,4024.8,4.779]
[1758777187140,3.0,4025.9,4024.8,4.779]
[1758777187375,3.0,4025.9,4024.9,0.2282]
[1758777187579,3.0,4025.9,4025.4,2.48422014]
[1758777187790,0.2436,4025.8,4024.9,0.2282]
[1758777188080,0.2436,4025.8,4024.9,2.48453377]
[1758777188081,2.48407159,4025.7,4024.9,2.48453377]
[1758777188387,3.0,4025.5,4024.8,7.26358462]
[1758777188587,2.48432051,4025.3,4024.4,2.9458335]
[1758777188760,5.72795243,4025.2,4024.3,4.779]
[1758777188941,0.2436,4025.2,4024.3,4.779]
[1758777189144,3.0,4025.0,4024.3,4.779]
[1758777189653,2.48447518,4025.0,4024.3,4.779]
[1758777189849,2.48453526,4024.9,4024.3,4.779]
[1758777190154,3.0,4024.8,4024.3,0.002]
[1758777190570,2.48479974,4024.5,4024.3,0.002]
[1758777190984,3.2447,4024.4,4024.3,0.002]
[1758777191172,2.72954246,4024.4,4024.3,0.002]
[1758777191484,3.20284246,4024.4,4024.3,0.002]
[1758777193181,0.718,4024.4,4024.3,0.002]
[1758777193394,4.773,4024.7,4024.3,0.002]
[1758777193395,3.0,4025.0,4024.3,0.002]
[1758777193584,3.2447,4025.0,4024.3,0.002]
[1758777193890,0.38969937,4024.9,4024.3,0.002]
[1758777194059,2.87424128,4024.9,4024.3,0.002]
[1758777194474,0.38969937,4024.9,4024.3,0.002]
[1758777194727,3.27684246,4024.4,4024.1,1e-08]
[1758777194884,2.48515122,4023.9,4023.8,0.002]
[1758777195090,2.48539828,4023.5,4023.4,0.002]
[1758777195291,10.25439828,4023.5,4023.4,0.002]
[1758777195516,10.97239828,4023.5,4023.4,0.002]
[1758777196828,11.76439828,4023.5,4023.4,0.002]
[1758777197423,10.49709828,4023.5,4023.4,0.002]
[1758777197934,3.2447,4023.5,4023.4,0.002]
[1758777198143,10.49709828,4023.5,4023.4,0.002]
[1758777198726,10.97039828,4023.5,4023.4,0.002]
[1758777199822,11.76239828,4023.5,4023.4,0.002]
[1758777200028,11.76239828,4023.5,4023.1,0.02]
[1758777200029,2.48558361,4023.2,4023.1,0.02]
[1758777200229,10.24958361,4023.2,4023.1,0.02]
[1758777200443,10.96758361,4023.2,4023.1,0.02]
[1758777200817,2.48620158,4022.2,4022.1,0.02]
[1758777201141,10.25020158,4022.2,4022.1,0.02]
[1758777201346,10.49390158,4022.2,4022.1,0.02]
[1758777201746,11.16554688,4022.2,4022.1,0.02]
[1758777201951,6.31921673,4022.2,4022.1,0.02]
[1758777202117,11.55551673,4022.2,4022.1,0.02]
[1758777203843,12.34751673,4022.2,4022.1,0.02]
[1758777204317,2.48669617,4021.4,4021.3,0.002]
[1758777204522,7.24669617,4021.4,4021.3,0.002]
[1758777204717,5.48669617,4021.4,4021.3,0.002]
[1758777204924,3.0,4021.4,4021.3,0.7037]
[1758777205253,7.76,4021.4,4021.3,0.002]
[1758777205451,7.759,4021.4,4021.3,0.2441]
[1758777205754,5.48669617,4021.4,4021.3,0.002]
[1758777205980,3.0,4021.4,4021.3,0.7037]
[1758777207264,3.0,4021.4,4021.3,3.19045801]
[1758777207476,0.58833661,4022.2,4021.3,0.7037]
[1758777207766,0.58833661,4022.2,4021.4,0.7017]
[1758777207917,0.58833661,4022.2,4022.1,2.48626339]
[1758777208116,0.1983453,4022.2,4022.1,3.18796339]
[1758777208353,0.38992514,4022.5,4022.1,0.7017]
[1758777208519,0.38992514,4022.5,4022.4,2.48607796]
[1758777208721,0.38992514,4022.5,4022.4,0.7017]
[1758777210345,0.19223704,4022.5,4022.2,0.02486201]
[1758777210545,4.754,4023.0,4022.0,0.2421]
[1758777210773,2.48606712,4022.5,4021.9,0.4596]
[1758777210982,2.48606712,4022.5,4021.7,0.2421]
[1758777211156,2.48596868,4022.6,4021.7,2.4865052]
[1758777211482,3.0,4022.3,4021.6,2.72866963]
[1758777211685,3.0,4022.3,4021.7,2.48650122]
[1758777212047,3.0,4022.3,4021.7,3.18820122]
[1758777212382,3.0,4022.3,4021.7,0.7017]
[1758777213586,5.48615916,4022.3,4021.7,0.7017]
[1758777213788,0.38991218,4022.2,4021.7,0.7017]
[1758777214088,2.48620658,4022.2,4021.7,0.7017]
[1758777214649,3.0,4022.3,4021.3,0.002]
[1758777214855,2.73102144,4022.1,4021.3,0.002]
[1758777215289,5.73102144,4022.1,4021.3,2.48874173]
[1758777215591,5.73102144,4022.1,4021.3,0.002]
[1758777215961,3.0,4022.0,4021.3,0.002]
[1758777216295,0.2447,4022.1,4021.4,2.48668564]
[1758777216589,0.2447,4022.1,4021.5,2.48661762]
[1758777216787,0.38993169,4022.0,4021.6,2.48657227]
[1758777216953,0.38993169,4022.0,4021.7,3.18821017]
[1758777217154,0.38993169,4022.0,4021.4,2.48669617]
[1758777217385,0.38993169,4022.0,4021.3,0.002]
[1758777217596,0.38993169,4022.0,4021.4,2.48668387]
[1758777217796,0.38993169,4022.0,4021.5,2.48663434]
[1758777218096,0.38993169,4022.0,4021.3,0.002]
[1758777218392,0.38993169,4022.0,4021.6,2.48655913]
[1758777218393,3.0,4021.9,4021.6,2.48655913]
[1758777218889,0.38993169,4022.0,4021.5,2.48662515]
[1758777219092,0.38993169,4022.0,4021.6,2.48654867]
[1758777219795,0.38993169,4022.0,4021.7,2.48647467]
[1758777220294,0.38993169,4022.0,4021.6,2.48656505]
[1758777220588,0.38993169,4022.0,4021.4,4.098]
[1758777220791,0.38993169,4022.0,4021.6,2.48651962]
[1758777221015,0.38993169,4022.0,4021.5,2.48662836]
[1758777221196,0.19803528,4022.8,4021.9,2.48638703]
[1758777221366,2.621,4023.3,4022.1,2.48620793]
[1758777221367,3.0,4022.6,4022.1,2.48620793]
[1758777221565,3.0,4022.6,4022.2,3.17449143]
[1758777221765,3.0,4022.6,4022.3,0.6883]
[1758777221977,0.19183241,4022.8,4021.5,4.12286634]
[1758777222297,4.741,4023.0,4022.4,0.6883]
[1758777222497,3.0,4022.9,4022.5,2.48600885]
[1758777222681,3.0,4022.9,4022.4,0.6883]
[1758777222997,3.19297209,4022.9,4022.5,2.48601615]
[1758777223757,3.0,4022.9,4022.5,2.48601615]
[1758777223961,3.0,4022.9,4022.6,2.48593851]
[1758777224162,3.19927608,4022.9,4022.6,2.48593438]
[1758777224393,3.0,4022.9,4022.6,2.48593438]
[1758777224804,3.1948594,4022.9,4022.6,2.48593438]
[1758777225006,0.1948594,4022.9,4022.6,2.48593438]
[1758777225209,0.38989372,4023.2,4022.6,2.48593438]
[1758777225388,0.38989372,4023.2,4022.9,2.48571649]
[1758777225770,0.58307984,4023.2,4022.8,2.48583076]
[1758777225969,0.58307984,4023.2,4023.0,2.48566197]
[1758777226411,0.58307984,4023.2,4023.1,2.48564539]
[1758777227113,0.58307984,4023.2,4023.0,2.48568934]
[1758777227480,0.58307984,4023.2,4023.1,2.48564539]
[1758777227920,0.58307984,4023.2,4023.1,2.92784539]
[1758777228079,0.19318612,4023.2,4023.1,3.17394539]
[1758777228411,0.02,4023.9,4023.8,2.48521298]
[1758777229120,0.02,4023.9,4023.0,2.48568427]
[1758777229121,0.02,4023.9,4023.3,0.4422]
[1758777229336,2.48539073,4023.6,4022.7,2.48584581]
[1758777229615,2.71600008,4023.5,4022.5,0.4422]
[1758777229815,0.001,4022.9,4022.3,0.2461]
[1758777230185,0.001,4022.9,4022.4,2.4860325]
[1758777230719,0.001,4022.9,4022.4,0.2461]
[1758777230887,0.001,4022.9,4022.6,2.48589866]
[1758777231304,0.39084793,4022.9,4022.6,2.48589866]
[1758777231818,0.39084793,4022.9,4022.4,2.92823098]
[1758777232352,0.39084793,4022.9,4022.5,2.48600121]
[1758777232843,0.39084793,4022.9,4022.5,2.48601537]
[1758777233134,0.28993551,4022.9,4022.5,2.48601537]
[1758777233433,0.2306,4022.8,4022.3,2.48608146]
[1758777233742,0.2306,4022.8,4022.6,1.01]
[1758777234830,0.2306,4022.7,4022.6,1.01]
[1758777235133,6.15769255,4022.7,4022.6,1.01]
[1758777235338,2.48605953,4022.5,4022.1,0.002]
[1758777235699,0.2306,4022.4,4022.1,0.002]
[1758777235908,4.9536,4022.4,4022.1,0.002]
[1758777236229,0.792,4023.0,4022.1,0.002]
[1758777236230,3.0,4022.2,4022.1,0.002]
[1758777236429,10.20820158,4022.2,4022.1,0.002]
[1758777236932,10.88000158,4022.2,4022.1,0.002]
[1758777237121,10.43880158,4022.2,4022.1,0.002]
[1758777237499,7.9526,4022.2,4022.1,0.002]
[1758777238230,10.43880158,4022.2,4022.1,0.002]
[1758777238400,7.9526,4022.2,4022.1,0.002]
[1758777238796,7.722,4022.2,4022.1,0.002]
[1758777239135,3.0,4022.2,4022.1,3.17656339]
[1758777239332,4.719,4022.5,4022.1,0.6903]
[1758777239501,4.719,4022.5,4022.2,3.17445915]
[1758777239840,0.38989264,4022.8,4022.3,2.73223169]
[1758777240042,0.38989264,4022.8,4022.4,0.6883]
[1758777240208,3.6718,4022.7,4022.1,0.002]
[1758777240642,2.4861374,4022.4,4022.1,0.002]
[1758777240848,5.48620158,4022.2,4022.1,0.002]
[1758777241349,3.695,4022.2,4022.1,0.002]
[1758777241548,6.18120158,4022.2,4022.1,0.002]
[1758777243846,5.72560158,4022.2,4022.1,0.002]
[1758777244023,6.18120158,4022.2,4022.1,0.002]
[1758777244605,5.72560158,4022.2,4022.1,0.002]
[1758777245146,2.48620158,4022.2,4022.1,0.002]
[1758777245343,3.0,4022.4,4022.1,0.002]
[1758777245544,0.38992163,4022.7,4022.1,0.6753]
[1758777245850,2.606,4022.6,4022.4,2.48602388]
[1758777246029,2.606,4022.6,4022.4,3.15932388]
[1758777246223,3.0,4022.6,4022.5,3.15931615]
[1758777246425,0.38992163,4022.7,4022.6,2.48595435]
[1758777246741,2.024,4023.0,4022.6,0.2301]
[1758777246939,2.024,4023.0,4022.6,2.48594745]
[1758777247331,2.024,4023.0,4022.5,0.4432]
[1758777247538,2.024,4023.0,4022.5,2.92921003]
[1758777247850,2.024,4023.0,4022.7,2.48584674]
[1758777248459,2.025,4023.0,4022.7,2.48584674]
[1758777248819,2.025,4023.0,4022.6,3.15924062]
[1758777249519,3.0,4022.9,4022.6,0.6733]
[1758777249716,3.0,4022.9,4022.6,3.15924173]
[1758777249939,3.0,4022.9,4022.7,2.48588973]
[1758777250330,3.0,4022.9,4022.6,3.15923941]
[1758777250534,3.0,4022.9,4022.7,2.48588936]
[1758777250753,0.2304,4022.8,4022.1,0.002]
[1758777251104,5.48590662,4022.7,4022.1,0.002]
[1758777251239,2.48596891,4022.6,4022.1,0.002]
[1758777251555,2.48607675,4022.5,4022.1,0.002]
[1758777251863,2.48615461,4022.3,4022.1,0.002]
[1758777252070,2.48620158,4022.2,4022.1,0.002]
[1758777252364,2.71660158,4022.2,4022.1,0.002]
[1758777252560,5.71660158,4022.2,4022.1,0.002]
[1758777252867,3.0,4022.2,4022.1,0.002]
[1758777254528,3.3899236,4022.8,4022.2,2.48619902]
[1758777254726,3.0,4022.6,4022.2,2.48619902]
[1758777254963,0.3899236,4022.8,4022.3,2.48611874]
[1758777255170,0.3899236,4022.8,4022.3,2.73553977]
[1758777255357,0.3899236,4022.8,4022.5,2.48600386]
[1758777255755,0.3899236,4022.8,4022.6,2.48590861]
[1758777255930,0.3899236,4022.8,4022.5,0.7051]
[1758777256130,0.3899236,4022.8,4022.7,2.48589255]
[1758777256330,0.3899236,4022.8,4022.6,0.2494]
[1758777256731,0.3899236,4022.8,4022.6,2.73534562]
[1758777257128,0.001,4023.0,4022.7,0.2494]
[1758777257335,0.001,4023.0,4022.9,2.48576897]
[1758777257567,0.001,4023.0,4022.9,3.19086897]
[1758777258375,0.001,4023.0,4022.9,2.48576897]
[1758777258542,0.001,4023.0,4022.9,3.19086897]
[1758777258760,0.001,4023.0,4022.9,3.21572665]
[1758777262453,0.001,4023.0,4022.9,7.90672665]
[1758777262681,0.001,4023.0,4022.9,7.88186897]
[1758777264071,0.001,4023.0,4022.9,3.19086897]
[1758777264376,0.001,4023.0,4022.9,7.87886897]
[1758777267943,0.001,4023.0,4022.9,11.97686897]
[1758777271007,0.001,4023.5,4023.4,7.16546005]
[1758777271312,0.001,4023.5,4023.4,7.87056005]
[1758777273803,0.001,4023.5,4023.4,11.96756005]
[1758777275349,0.001,4023.5,4023.4,6.58246005]
[1758777275509,0.001,4023.5,4022.5,0.792]
[1758777275510,0.792,4023.4,4022.1,0.002]
[1758777275707,2.48583232,4022.8,4022.1,0.002]
[1758777276055,0.7053,4023.3,4022.1,0.002]
[1758777276056,2.48577837,4022.9,4022.1,0.002]
[1758777276405,0.39078526,4023.5,4022.1,4.675]
[1758777276406,2.48604455,4022.5,4022.1,4.675]
[1758777276708,0.7053,4022.4,4022.1,4.675]
[1758777277015,0.7053,4022.3,4022.1,4.675]
[1758777277234,3.7053,4022.2,4022.1,0.002]
[1758777277435,3.27851067,4021.7,4021.6,0.002]
[1758777277746,6.27851067,4021.7,4021.6,0.002]
[1758777277911,6.98381067,4021.7,4021.6,0.002]
[1758777278310,7.37382954,4021.7,4021.6,0.002]
[1758777278539,12.04482954,4021.7,4021.6,0.002]
[1758777279515,6.58182954,4021.7,4021.6,0.002]
[1758777280055,2.48669617,4021.4,4021.3,0.002]
[1758777280549,6.19199617,4021.4,4021.3,0.002]
[1758777282144,0.2336,4022.4,4021.3,0.002]
[1758777282359,0.2336,4022.0,4021.3,0.002]
[1758777282744,0.2336,4022.0,4021.3,2.48872106]
[1758777283050,0.3899748,4022.3,4022.0,2.48629968]
[1758777283244,0.3899748,4022.3,4021.4,0.70156696]
[1758777283419,0.50257895,4023.0,4022.5,2.48596101]
[1758777283623,0.50257895,4023.0,4022.2,0.2424]
[1758777283823,0.50257895,4023.0,4022.8,2.48580025]
[1758777284354,0.50257895,4023.0,4022.2,0.26726201]
[1758777284660,0.50357895,4023.0,4022.8,2.48582802]
[1758777284863,0.50357895,4023.0,4022.8,2.48580949]
[1758777285375,0.50357895,4023.0,4022.6,2.48593875]
[1758777285578,0.50357895,4023.0,4022.2,0.2424]
[1758777286267,0.50357895,4023.0,4022.7,2.48584347]